bitfinex-derivatives/quotes_SOLF0:USTF0_20250523
["timestamp","ask_amount","ask_price","bid_price","bid_amount"]
[1747999804249,0.03520342,184.88,184.87,5.4092]
[1747999806852,0.03520342,184.88,184.86,5.4094]
[1747999807143,0.03520342,184.88,184.84,0.03956279]
[1747999807745,0.03520342,184.88,184.87,5.4092]
[1747999810914,0.03520342,184.88,184.86,5.4094]
[1747999811225,0.03520342,184.88,184.84,0.03956279]
[1747999811515,5.44430342,184.88,184.84,5.44936279]
[1747999811710,0.03520342,184.88,184.84,5.44936279]
[1747999811916,5.33726916,184.87,184.8,4.46809366]
[1747999812114,160.6319,184.86,184.8,4.46809366]
[1747999812622,5.4103,184.84,184.8,9.87919366]
[1747999812917,0.03453237,184.84,184.8,9.91780093]
[1747999813217,5.4105,184.83,184.8,4.50670093]
[1747999813521,0.03453237,184.84,184.8,4.50670093]
[1747999814215,0.03453237,184.84,184.83,5.4104]
[1747999814420,0.03453237,184.84,184.8,4.50670093]
[1747999814719,0.03453237,184.84,184.8,0.03860727]
[1747999814920,0.03453237,184.84,184.83,5.4104]
[1747999819125,0.03453237,184.84,184.8,0.03860727]
[1747999820730,5.44483237,184.84,184.8,5.44960727]
[1747999821025,0.03453237,184.84,184.8,0.03860727]
[1747999821227,5.4105,184.83,184.8,0.03860727]
[1747999822025,5.44473237,184.84,184.8,5.44960727]
[1747999822227,0.03453237,184.84,184.8,0.03860727]
[1747999822525,5.4105,184.83,184.8,5.44980727]
[1747999823027,0.03453237,184.84,184.8,0.03860727]
[1747999823626,1.88773237,184.84,184.8,0.03860727]
[1747999824327,5.4107,184.82,184.8,0.03860727]
[1747999824526,1.88773237,184.84,184.8,0.03860727]
[1747999825027,5.4109,184.81,184.8,0.03860727]
[1747999825324,158.70773237,184.84,184.76,5.4123]
[1747999825523,158.6732,184.84,184.76,5.4123]
[1747999826430,5.37297397,184.82,184.78,0.04017612]
[1747999826728,5.37297397,184.82,184.69,156.82]
[1747999826925,5.412,184.78,184.74,5.4128]
[1747999827131,5.33726916,184.82,184.74,5.4128]
[1747999827428,5.33726916,184.79,184.69,156.82]
[1747999827630,156.82,184.78,184.69,156.82]
[1747999827829,0.03802046,184.75,184.72,0.03626136]
[1747999828028,0.03802046,184.75,184.73,5.4133]
[1747999828227,0.03802046,184.75,184.72,0.03626136]
[1747999828426,161.79414327,184.83,184.8,5.411]
[1747999828622,4.97414327,184.83,184.75,162.15726916]
[1747999829028,4.97414327,184.83,184.82,5.4106]
[1747999829927,4.97414327,184.83,184.81,5.44843856]
[1747999830128,0.03801654,184.84,184.81,0.03763856]
[1747999830934,5.4106,184.82,184.81,0.03763856]
[1747999832324,1.92481654,184.84,184.76,5.4123]
[1747999832530,1.92481654,184.84,184.74,102.82]
[1747999832724,1.8868,184.84,184.74,102.82]
[1747999832924,5.4117,184.79,184.75,5.4125]
[1747999833333,5.45225623,184.79,184.75,5.44763881]
[1747999833633,0.04055623,184.79,184.75,0.03513881]
[1747999834025,0.04055623,184.79,184.78,5.4118]
[1747999835029,5.623e-05,184.79,184.78,5.4118]
[1747999835526,4.97414327,184.86,184.77,160.37726916]
[1747999836432,0.03501068,184.83,184.8,0.03627839]
[1747999836634,0.03501068,184.83,184.81,102.82]
[1747999836831,0.03501068,184.83,184.82,108.2306]
[1747999837125,0.03501068,184.83,184.82,5.4106]
[1747999839433,6.78754327,184.92,184.87,5.4089]
[1747999839732,6.78754327,184.92,184.81,102.82]
[1747999840333,0.03539271,184.88,184.85,0.03820879]
[1747999841236,0.03539271,184.88,184.87,5.4092]
[1747999841431,0.03539271,184.88,184.85,0.03820879]
[1747999841932,5.4092,184.87,184.85,0.03820879]
[1747999842235,0.03539271,184.88,184.85,0.03820879]
[1747999842838,5.4094,184.87,184.85,0.03820879]
[1747999843336,5.44439271,184.88,184.85,0.03820879]
[1747999843520,0.03539271,184.88,184.85,0.03820879]
[1747999844124,5.44439271,184.88,184.85,5.44770879]
[1747999844434,0.03539271,184.88,184.85,0.03820879]
[1747999845235,5.44449271,184.88,184.85,5.44790879]
[1747999845537,0.03539271,184.88,184.85,5.44790879]
[1747999845834,0.03539271,184.88,184.85,0.03820879]
[1747999846337,5.4095,184.86,184.85,0.03820879]
[1747999846839,5.44439271,184.88,184.85,0.03820879]
[1747999847137,0.03539271,184.88,184.85,0.03820879]
[1747999847636,0.03539271,184.88,184.86,5.4093]
[1747999847942,0.03539271,184.88,184.85,0.03820879]
[1747999848139,0.03539271,184.88,184.86,5.4093]
[1747999849039,0.03539271,184.88,184.87,5.4092]
[1747999849539,0.03539271,184.88,184.85,0.03820879]
[1747999851344,5.4095,184.86,184.85,0.03820879]
[1747999852737,5.4,184.86,184.73,108.70235483]
[1747999852937,5.33726916,184.83,184.75,5.4125]
[1747999853143,5.4117,184.79,184.75,5.4125]
[1747999853337,5.33726916,184.83,184.73,108.70235483]
[1747999853534,0.03840555,184.8,184.76,0.03427587]
[1747999854443,0.03840555,184.8,184.77,5.4118]
[1747999854938,0.03840555,184.8,184.76,0.03427587]
[1747999855942,0.03840555,184.8,184.79,5.4115]
[1747999860339,5.55e-06,184.8,184.79,5.4115]
[1747999860938,6.89054327,184.89,184.79,5.4115]
[1747999860939,4.97414327,184.89,184.88,5.4089]
[1747999861133,4.97414327,184.89,184.83,257.86]
[1747999861841,5.4091,184.88,184.85,5.4096]
[1747999862042,5.45025822,184.88,184.85,5.4096]
[1747999862343,5.45025822,184.88,184.84,5.4450239]
[1747999862545,5.45025822,184.88,184.84,0.0350239]
[1747999862940,5.4093,184.87,184.84,0.0350239]
[1747999863146,0.04115822,184.88,184.84,0.0350239]
[1747999863640,5.45025822,184.88,184.85,5.4096]
[1747999863841,0.04115822,184.88,184.84,0.0350239]
[1747999864247,5.45035822,184.88,184.85,5.4096]
[1747999865247,0.04115822,184.88,184.86,5.4094]
[1747999865440,0.04115822,184.88,184.84,0.0350239]
[1747999865852,0.04115822,184.88,184.87,5.4092]
[1747999867154,5.822e-05,184.88,184.87,5.4092]
[1747999868254,5.822e-05,184.88,184.87,108.2092]
[1747999871855,5.822e-05,184.88,184.87,5.4092]
[1747999872045,5.822e-05,184.88,184.86,158.6494]
[1747999872856,5.40905822,184.88,184.86,153.24]
[1747999873154,5.822e-05,184.88,184.84,0.0350239]
[1747999873755,5.822e-05,184.88,184.85,5.4095]
[1747999874054,5.822e-05,184.88,184.84,0.0350239]
[1747999874258,5.40915822,184.88,184.84,5.4448239]
[1747999874460,5.822e-05,184.88,184.84,0.0350239]
[1747999875360,5.4098,184.85,184.84,0.0350239]
[1747999875556,5.822e-05,184.88,184.76,473.42235483]
[1747999875752,5.33726916,184.89,184.76,5.90235483]
[1747999875955,5.4106,184.83,184.79,5.4115]
[1747999876457,5.4478453,184.83,184.79,5.4517157]
[1747999876658,5.4107,184.82,184.79,0.0402157]
[1747999876956,0.0372453,184.83,184.79,0.0402157]
[1747999877256,0.0372453,184.83,184.74,153.2]
[1747999877257,5.37451446,184.83,184.74,153.2]
[1747999877457,3.7794,184.82,184.74,153.2]
[1747999877856,0.0372453,184.83,184.74,158.53726916]
[1747999878058,0.0372453,184.83,184.77,0.03622048]
[1747999878959,0.0372453,184.83,184.82,5.4107]
[1747999881061,0.0372453,184.83,184.81,5.4109]
[1747999881262,0.0372453,184.83,184.77,5.37348964]
[1747999881463,0.0372453,184.83,184.77,0.03622048]
[1747999881862,5.4476453,184.83,184.79,5.4113]
[1747999882069,0.0372453,184.83,184.79,5.4113]
[1747999882364,5.4476453,184.83,184.77,0.03622048]
[1747999882665,0.0372453,184.83,184.77,0.03622048]
[1747999882856,1.8536,184.82,184.77,0.03622048]
[1747999883463,1.9534,184.81,184.77,0.03622048]
[1747999883660,5.4113,184.8,184.77,0.03622048]
[1747999884164,1.9534,184.81,184.77,0.03622048]
[1747999884764,5.4116,184.79,184.77,0.03622048]
[1747999885066,1.9534,184.81,184.77,0.03622048]
[1747999885460,1.9404,184.8,184.69,153.24]
[1747999885967,5.4124,184.77,184.69,153.24]
[1747999886171,5.4124,184.77,184.73,5.4132]
[1747999886467,5.4124,184.77,184.73,5.44763949]
[1747999886662,5.45070521,184.77,184.73,5.44763949]
[1747999887069,5.45070521,184.77,184.73,0.03443949]
[1747999887070,0.03830521,184.77,184.73,0.03443949]
[1747999887273,0.03830521,184.77,184.65,256.08]
[1747999887463,327.26,184.79,184.65,256.08]
[1747999888164,5.4119,184.78,184.74,5.4129]
[1747999888360,327.26,184.79,184.65,256.08]
[1747999888565,153.26,184.79,184.76,5.4124]
[1747999888766,153.26,184.79,184.65,256.08]
[1747999888767,153.26,184.79,184.66,10.8307]
[1747999889273,0.03973605,184.74,184.73,5.4133]
[1747999889458,0.03499336,184.75,184.71,0.03522958]
[1747999889664,0.03499336,184.75,184.74,5.413]
[1747999890774,0.03499336,184.75,184.71,0.03522958]
[1747999891471,0.03499336,184.75,184.72,5.4136]
[1747999891670,0.03499336,184.75,184.71,0.03522958]
[1747999892278,0.03499336,184.75,184.74,5.413]
[1747999895779,0.03499336,184.75,184.71,151.53522958]
[1747999895780,0.03499336,184.75,184.72,5.4134]
[1747999895977,0.03499336,184.75,184.71,151.53522958]
[1747999896484,0.03499336,184.75,184.74,5.413]
[1747999897080,0.03499336,184.75,184.71,151.53522958]
[1747999897482,0.03499336,184.75,184.74,5.413]
[1747999900685,0.03499336,184.75,184.71,151.53522958]
[1747999901085,0.03499336,184.75,184.74,5.413]
[1747999901288,0.03499336,184.75,184.71,151.53522958]
[1747999901584,0.03499336,184.75,184.74,5.413]
[1747999902979,0.03499336,184.75,184.71,0.03522958]
[1747999904084,5.44779336,184.75,184.71,5.44912958]
[1747999904285,5.44779336,184.75,184.71,0.03522958]
[1747999905389,0.03499336,184.75,184.72,5.4134]
[1747999905990,0.03499336,184.75,184.73,5.4133]
[1747999906489,0.03499336,184.75,184.72,5.4134]
[1747999906690,0.03499336,184.75,184.71,0.03522958]
[1747999907088,0.03499336,184.75,184.72,5.4136]
[1747999907990,5.44779336,184.75,184.71,5.44912958]
[1747999908790,0.03499336,184.75,184.72,5.4136]
[1747999909391,0.03499336,184.75,184.71,0.03522958]
[1747999910092,2.00869336,184.75,184.71,0.03522958]
[1747999911090,5.4135,184.73,184.71,0.03522958]
[1747999911299,2.00869336,184.75,184.71,0.03522958]
[1747999911788,1.8233,184.74,184.71,0.03522958]
[1747999912494,5.4136,184.72,184.71,0.03522958]
[1747999912791,1.8233,184.74,184.71,0.03522958]
[1747999913195,5.4135,184.73,184.71,0.03522958]
[1747999913392,1.8233,184.74,184.71,0.03522958]
[1747999913796,5.4136,184.72,184.71,0.03522958]
[1747999915197,5.4134,184.73,184.71,0.03522958]
[1747999918901,5.4136,184.72,184.71,0.03522958]
[1747999919600,5.4134,184.73,184.71,0.03522958]
[1747999919898,1.8233,184.74,184.71,0.03522958]
[1747999920200,0.03499336,184.75,184.71,0.03522958]
[1747999920403,0.03499336,184.75,184.74,5.413]
[1747999920896,0.03499336,184.75,184.72,102.88]
[1747999920897,4.97414327,184.78,184.73,5.34413465]
[1747999921100,4.97414327,184.78,184.77,5.4122]
[1747999921899,4.97414327,184.78,184.76,0.0350904]
[1747999922295,0.03789563,184.79,184.76,0.0350904]
[1747999922498,5.4122,184.77,184.76,0.0350904]
[1747999923602,0.03789563,184.79,184.69,102.88]
[1747999923902,156.90413465,184.81,184.69,102.88]
[1747999924100,5.4128,184.75,184.72,5.4134]
[1747999924503,5.4133,184.73,184.72,0.04031051]
[1747999925107,0.03510249,184.75,184.72,0.04031051]
[1747999925704,0.03510249,184.75,184.74,5.413]
[1747999926097,0.03510249,184.75,184.73,5.4133]
[1747999927106,0.03510249,184.75,184.72,0.04031051]
[1747999927502,5.44790249,184.75,184.72,0.04031051]
[1747999927697,0.03510249,184.75,184.72,0.04031051]
[1747999928704,5.4133,184.73,184.72,0.04031051]
[1747999929509,5.4145,184.7,184.66,5.4153]
[1747999929705,5.4145,184.7,184.64,149.92]
[1747999930409,3.9348,184.74,184.64,149.92]
[1747999930707,5.44861014,184.71,184.67,5.45644469]
[1747999931198,0.03441014,184.71,184.67,0.04154469]
[1747999932011,0.03441014,184.71,184.7,5.4142]
[1747999936912,5.00409738,184.77,184.76,5.4125]
[1747999937109,9.738e-05,184.77,184.76,5.4125]
[1747999937301,6.67212984,184.79,184.74,5.34413465]
[1747999937509,10.00819476,184.82,184.77,5.34413465]
[1747999937706,10.00819476,184.82,184.78,252.8]
[1747999937909,10.00819476,184.82,184.81,5.411]
[1747999939014,9.476e-05,184.82,184.81,5.411]
[1747999939205,149.94,184.9,184.8,5.37846553]
[1747999939512,9.1056,184.92,184.8,5.37846553]
[1747999939715,3.6977,184.92,184.8,8.69089122]
[1747999940116,5.4085,184.9,184.81,252.82]
[1747999940314,0.03815422,184.87,184.86,5.4093]
[1747999940516,0.03815422,184.87,184.84,0.04170076]
[1747999941419,5.4098,184.85,184.84,0.04170076]
[1747999941716,0.03815422,184.87,184.77,102.84]
[1747999941915,5.4106,184.83,184.79,5.4115]
[1747999942111,1.8428,184.87,184.77,102.84]
[1747999942417,5.4106,184.83,184.79,5.4115]
[1747999942618,0.04134812,184.83,184.79,0.0400377]
[1747999943209,0.04134812,184.83,184.8,5.4113]
[1747999943414,0.04134812,184.83,184.79,0.0400377]
[1747999943615,0.04134812,184.83,184.8,5.4111]
[1747999943815,0.04134812,184.83,184.79,0.0400377]
[1747999945020,0.04134812,184.83,184.82,5.4107]
[1747999949320,0.04134812,184.83,184.77,110.98162892]
[1747999949826,0.04134812,184.83,184.82,5.4107]
[1747999953233,0.04134812,184.83,184.81,0.0372549]
[1747999953721,0.04134812,184.83,184.81,5.4480549]
[1747999954316,0.04134812,184.83,184.82,5.4107]
[1747999955920,0.04134812,184.83,184.81,5.4481549]
[1747999956819,5.4107,184.82,184.81,0.0372549]
[1747999957121,0.04134812,184.83,184.81,0.0372549]
[1747999957318,5.4107,184.82,184.69,473.74424476]
[1747999957512,1.8577,184.82,184.71,152.72640854]
[1747999957711,1.9809,184.81,184.71,152.72640854]
[1747999957923,1.9809,184.81,184.74,5.413]
[1747999958123,1.9809,184.81,184.71,152.72640854]
[1747999958426,5.4124,184.77,184.74,0.04025759]
[1747999958719,0.03526292,184.78,184.74,0.04025759]
[1747999959820,5.4127,184.76,184.74,0.04025759]
[1747999960626,5.44746292,184.78,184.74,0.04025759]
[1747999960922,0.03526292,184.78,184.74,0.04025759]
[1747999962124,0.03526292,184.78,184.74,5.45315759]
[1747999962317,0.03526292,184.78,184.74,0.04025759]
[1747999962717,5.4124,184.77,184.74,5.45325759]
[1747999962925,5.4124,184.77,184.74,0.04025759]
[1747999964129,0.03526292,184.78,184.74,0.04025759]
[1747999965328,5.4122,184.77,184.74,0.04025759]
[1747999965826,5.4125,184.76,184.74,0.04025759]
[1747999966125,0.03526292,184.78,184.74,0.04025759]
[1747999966317,5.4125,184.76,184.74,0.04025759]
[1747999966729,0.03526292,184.78,184.74,0.04025759]
[1747999967626,5.4127,184.76,184.74,0.04025759]
[1747999968426,5.4127,184.75,184.74,0.04025759]
[1747999969821,0.03526292,184.78,184.66,148.3]
[1747999970119,174.0,184.78,184.66,148.3]
[1747999970322,179.34144099,184.78,184.66,148.3]
[1747999970725,5.44754969,184.74,184.7,0.04040595]
[1747999971127,5.44754969,184.74,184.7,5.45440595]
[1747999971329,0.03434969,184.74,184.7,0.04040595]
[1747999972429,0.03434969,184.74,184.73,5.4133]
[1747999973927,0.03434969,184.74,184.72,5.4135]
[1747999974235,0.03434969,184.74,184.7,0.04040595]
[1747999975231,0.03434969,184.74,184.62,4.46640854]
[1747999975432,5.4137,184.72,184.68,5.4148]
[1747999976036,1.9765,184.74,184.63,5.34144099]
[1747999976332,0.03572819,184.7,184.67,0.04033347]
[1747999977334,0.03572819,184.7,184.69,5.4143]
[1747999978026,0.03572819,184.7,184.68,5.4147]
[1747999978330,0.03572819,184.7,184.67,0.04033347]
[1747999978536,0.03572819,184.7,184.68,5.4148]
[1747999978934,0.03572819,184.7,184.67,0.04033347]
[1747999979631,0.03572819,184.7,184.6,467.64]
[1747999979931,148.37572819,184.7,184.58,152.80640854]
[1747999980229,148.34,184.7,184.58,152.80640854]
[1747999980434,148.34,184.7,184.59,5.34144099]
[1747999980734,0.03773636,184.66,184.64,5.4157]
[1747999981033,0.03773636,184.66,184.63,0.0413173]
[1747999981236,0.03773636,184.66,184.64,5.416]
[1747999981434,0.03773636,184.66,184.63,0.0413173]
[1747999981637,5.45313636,184.66,184.63,5.4575173]
[1747999981834,0.03773636,184.66,184.63,5.4575173]
[1747999982136,0.03773636,184.66,184.63,0.0413173]
[1747999982437,5.45323636,184.66,184.63,0.0413173]
[1747999983136,5.416,184.64,184.63,0.0413173]
[1747999984137,5.45333636,184.66,184.63,0.0413173]
[1747999984637,5.45323636,184.66,184.63,0.0413173]
[1747999984831,0.03773636,184.66,184.63,0.0413173]
[1747999985739,0.03773636,184.66,184.63,5.4575173]
[1747999985938,0.03773636,184.66,184.63,0.0413173]
[1747999986340,5.4157,184.65,184.63,0.0413173]
[1747999987140,5.416,184.64,184.63,0.0413173]
[1747999987537,5.416,184.64,184.6,5.4169]
[1747999987538,0.03773636,184.66,184.53,150.5622]
[1747999987731,1.9362,184.67,184.58,5.4176]
[1747999987932,175.9362,184.67,184.58,5.4176]
[1747999988541,0.03976988,184.64,184.61,0.03602201]
[1747999989042,146.89976988,184.64,184.51,717.54]
[1747999989340,146.86,184.64,184.51,619.98144099]
[1747999989542,146.86,184.64,184.51,722.88144099]
[1747999990042,0.04147519,184.59,184.56,0.03453656]
[1747999992545,0.04147519,184.59,184.56,5.45263656]
[1747999993142,5.45897519,184.59,184.56,0.03453656]
[1747999993444,0.04147519,184.59,184.56,0.03453656]
[1747999993633,5.45917519,184.59,184.56,0.03453656]
[1747999993839,0.04147519,184.59,184.56,0.03453656]
[1747999994344,5.45907519,184.59,184.56,0.03453656]
[1747999994545,0.04147519,184.59,184.56,0.03453656]
[1747999994944,5.418,184.58,184.56,0.03453656]
[1747999996149,5.38291618,184.59,184.47,146.9]
[1747999996339,146.9,184.58,184.47,146.9]
[1747999996537,5.34144099,184.56,184.44,102.92]
[1747999997047,5.34144099,184.56,184.49,5.4202]
[1747999997247,0.03986171,184.54,184.51,0.03500044]
[1747999998349,5.4194,184.53,184.51,0.03500044]
[1747999998940,5.4195,184.52,184.51,0.03500044]
[1747999999449,146.92,184.52,184.39,146.92]
[1747999999745,146.92,184.52,184.39,249.86]
[1748000000246,146.92,184.52,184.39,146.92]
[1748000000447,0.04032791,184.48,184.39,146.92]
[1748000002048,0.04032791,184.48,184.38,104.5896]
[1748000002049,0.04032791,184.48,184.38,1.6496]
[1748000002248,5.422,184.44,184.35,249.9]
[1748000002554,8.772e-05,184.41,184.36,5.34144099]
[1748000002854,146.94,184.52,184.39,5.34144099]
[1748000003044,146.94,184.52,184.4,5.5788]
[1748000003351,3.7195,184.53,184.41,146.96]
[1748000003651,0.03640725,184.49,184.45,0.0364]
[1748000003848,0.03640725,184.49,184.47,5.421]
[1748000004652,0.03640725,184.49,184.48,5.4207]
[1748000005849,0.03640725,184.49,184.45,0.0364]
[1748000006755,0.03640725,184.49,184.48,5.4207]
[1748000007154,0.03640725,184.49,184.45,0.0364]
[1748000007346,0.03640725,184.49,184.46,5.421]
[1748000007552,0.03640725,184.49,184.45,0.0364]
[1748000007857,0.03640725,184.49,184.47,5.4207]
[1748000008655,0.03640725,184.49,184.48,5.4207]
[1748000009053,0.03640725,184.49,184.45,0.0364]
[1748000009757,5.45690725,184.49,184.46,5.421]
[1748000010059,0.03640725,184.49,184.45,0.0364]
[1748000010262,146.98,184.48,184.45,0.0364]
[1748000010563,5.4212,184.46,184.45,0.0364]
[1748000011647,5.4224,184.43,184.35,249.98]
[1748000011848,146.98,184.48,184.35,146.98]
[1748000012456,5.34144099,184.46,184.35,146.98]
[1748000012652,3.6192,184.45,184.35,146.98]
[1748000012858,5.423,184.4,184.37,5.4236]
[1748000013062,0.03482724,184.42,184.35,146.98]
[1748000013360,5.423,184.41,184.35,146.98]
[1748000013555,0.03482724,184.42,184.35,146.98]
[1748000015065,0.03482724,184.42,184.35,152.32144099]
[1748000015267,3.8117,184.5,184.38,5.34144099]
[1748000015564,1.8499,184.55,184.44,5.34144099]
[1748000015762,1.9618,184.56,184.44,254.00144099]
[1748000015959,1.9618,184.56,184.45,3.7783]
[1748000016262,0.03441758,184.52,184.49,0.03482724]
[1748000017380,5.4199,184.51,184.49,0.03482724]
[1748000017863,0.03441758,184.52,184.49,0.03482724]
[1748000018068,0.03441758,184.52,184.49,5.45512724]
[1748000018356,0.03441758,184.52,184.49,0.03482724]
[1748000018562,5.34144099,184.51,184.37,3.8902]
[1748000019062,5.421,184.47,184.43,5.4219]
[1748000019263,5.34144099,184.51,184.37,3.8902]
[1748000019463,0.03967035,184.46,184.37,3.8902]
[1748000019659,5.46117035,184.46,184.42,5.4224]
[1748000019864,0.03967035,184.46,184.42,5.4224]
[1748000020667,0.03967035,184.46,184.37,3.8902]
[1748000022366,0.03967035,184.46,184.32,468.12]
[1748000022569,0.04144337,184.41,184.33,252.3928]
[1748000022767,0.04144337,184.41,184.34,8.7354084]
[1748000023370,0.04144337,184.41,184.4,5.423]
[1748000023665,147.5569,184.51,184.4,145.66]
[1748000023666,145.66,184.51,184.4,145.66]
[1748000023861,145.66,184.55,184.41,1.865]
[1748000024066,5.4201,184.51,184.47,5.4207]
[1748000024269,145.66,184.55,184.42,103.02]
[1748000024569,150.59284175,184.59,184.42,111.7554084]
[1748000024761,0.04156965,184.52,184.49,0.03986183]
[1748000025069,0.03475072,184.52,184.49,0.03986183]
[1748000025368,0.03475072,184.52,184.5,5.4198]
[1748000025568,0.03475072,184.52,184.49,0.03986183]
[1748000026569,5.45425072,184.52,184.49,5.45996183]
[1748000027171,0.03475072,184.52,184.5,5.42]
[1748000027371,0.03475072,184.52,184.49,0.03986183]
[1748000027671,0.03475072,184.52,184.51,5.4198]
[1748000027872,8.7354084,184.69,184.49,117.19527023]
[1748000028167,10.34854175,184.65,184.53,8.7354084]
[1748000028366,4.93284175,184.65,184.54,145.64]
[1748000028674,4.93284175,184.65,184.64,5.416]
[1748000028863,4.93284175,184.65,184.63,0.03757056]
[1748000029064,4.93284175,184.65,184.62,0.04064786]
[1748000029570,5.45588887,184.66,184.62,5.45694786]
[1748000030071,0.04038887,184.66,184.62,0.04064786]
[1748000031570,0.04038887,184.66,184.63,5.416]
[1748000032673,5.45598887,184.66,184.62,5.45714786]
[1748000032874,5.45598887,184.66,184.62,0.04064786]
[1748000033373,5.45598887,184.66,184.62,5.45694786]
[1748000033574,0.04038887,184.66,184.62,0.04064786]
[1748000036066,0.04038887,184.66,184.65,5.4157]
[1748000036268,0.04038887,184.66,184.62,0.04064786]
[1748000036474,0.04038887,184.66,184.63,5.416]
[1748000037573,0.04038887,184.66,184.64,5.4159]
[1748000037766,0.04038887,184.66,184.62,0.04064786]
[1748000038169,0.04038887,184.66,184.64,5.4158]
[1748000038772,0.04038887,184.66,184.65,5.4157]
[1748000040375,5.5375,184.79,184.65,108.34]
[1748000040568,4.93284175,184.8,184.67,8.7354084]
[1748000040973,4.93284175,184.8,184.71,8.7354084]
[1748000041173,10.34244175,184.86,184.72,145.54]
[1748000041374,0.04070788,184.81,184.8,5.4113]
[1748000041578,0.03838119,184.82,184.79,0.03523354]
[1748000041780,0.03838119,184.82,184.79,0.0359577]
[1748000042172,0.03838119,184.82,184.81,5.411]
[1748000043677,8.119e-05,184.82,184.81,5.411]
[1748000043883,4.175e-05,184.86,184.85,5.4098]
[1748000044077,3.6634,184.96,184.85,144.2]
[1748000044479,7.3862,184.98,184.85,144.2]
[1748000044677,1.9801,184.98,184.85,144.2]
[1748000044880,0.03511522,184.93,184.9,0.03849715]
[1748000045075,0.03511522,184.93,184.9,144.23849715]
[1748000045478,0.03511522,184.93,184.9,144.17849715]
[1748000045879,0.03511522,184.93,184.9,0.03849715]
[1748000047587,5.4081,184.91,184.9,0.03849715]
[1748000049284,0.03511522,184.93,184.72,62.0]
[1748000049489,1.9471,184.92,184.81,144.1]
[1748000049786,1.9764,184.91,184.81,149.511]
[1748000049984,1.9764,184.91,184.81,144.1]
[1748000050282,0.03633049,184.88,184.84,0.03972663]
[1748000051379,5.4098,184.85,184.84,0.03972663]
[1748000051680,0.03633049,184.88,184.78,5.4118]
[1748000051885,1.9764,184.91,184.77,611.98]
[1748000052879,0.04000436,184.86,184.82,0.03448623]
[1748000053479,5.44960436,184.86,184.82,0.03448623]
[1748000053681,0.04000436,184.86,184.82,0.03448623]
[1748000055290,5.4104,184.83,184.82,0.03448623]
[1748000055884,5.4102,184.84,184.82,0.03448623]
[1748000056375,0.04000436,184.86,184.82,0.03448623]
[1748000056573,144.08,184.85,184.72,144.08]
[1748000056985,5.4128,184.75,184.71,5.4139]
[1748000057187,144.08,184.85,184.68,246.88]
[1748000057689,0.04061697,184.78,184.75,0.04087242]
[1748000057880,144.12024278,184.78,184.63,144.08]
[1748000058081,12.5632084,184.77,184.63,144.08]
[1748000058587,5.415,184.68,184.63,149.4961]
[1748000058787,5.415,184.68,184.63,144.08]
[1748000058983,0.03973577,184.67,184.63,144.08]
[1748000059987,0.03973577,184.67,184.59,144.08]
[1748000060493,0.03973577,184.67,184.62,5.4164]
[1748000060694,0.03973577,184.67,184.59,144.08]
[1748000061586,144.15973577,184.67,184.56,467.48]
[1748000061787,3.7926,184.66,184.56,467.48]
[1748000061995,0.0387371,184.63,184.55,144.12]
[1748000062690,0.0387371,184.63,184.52,102.84]
[1748000063994,5.4552371,184.63,184.58,5.4177]
[1748000064394,0.0387371,184.63,184.52,102.84]
[1748000064987,5.4553371,184.63,184.52,102.84]
[1748000065291,0.0387371,184.63,184.52,102.84]
[1748000065498,5.4551371,184.63,184.59,5.4173]
[1748000066098,0.0387371,184.63,184.52,102.84]
[1748000066492,0.0387371,184.63,184.51,144.12]
[1748000066793,0.03465237,184.59,184.51,144.12]
[1748000067099,5.45215237,184.59,184.55,5.4186]
[1748000067290,5.45535299,184.59,184.55,5.4186]
[1748000067591,0.03785299,184.59,184.47,714.68]
[1748000067791,0.04144154,184.55,184.47,611.8]
[1748000068597,0.04144154,184.55,184.47,144.2]
[1748000069095,5.4192,184.54,184.43,144.2]
[1748000069292,0.04163933,184.5,184.43,144.2]
[1748000069493,0.04163933,184.5,184.49,5.4204]
[1748000070406,0.04163933,184.5,184.43,144.2]
[1748000070901,0.04163933,184.5,184.47,5.4207]
[1748000071291,0.04163933,184.5,184.43,144.2]
[1748000071600,0.04163933,184.5,184.39,144.24]
[1748000071798,144.28163933,184.5,184.39,144.24]
[1748000073196,0.04163933,184.5,184.39,144.24]
[1748000073397,0.04163933,184.5,184.48,5.4206]